bitfinex/quotes_SOLUSD_20251031
["timestamp","ask_amount","ask_price","bid_price","bid_amount"]
[1761932500148,6.17180825,185.21,185.16,11.66248087]
[1761932500663,5.57180825,185.18,185.13,5.57180825]
[1761932500965,5.57180825,185.17,185.13,5.40155144]
[1761932501143,5.57180825,185.18,185.13,10.97335969]
[1761932501347,6.17180825,185.18,185.13,10.97335969]
[1761932501541,6.17180825,185.18,185.12,14.19473332]
[1761932501542,5.57180825,185.16,185.12,5.4018271]
[1761932501768,5.57180825,185.17,185.12,10.97363535]
[1761932501971,5.57180825,185.17,185.12,11.66363535]
[1761932502470,5.85613139,185.18,185.12,11.66363535]
[1761932502639,5.85613139,185.18,185.12,6.26180825]
[1761932502836,6.17180825,185.17,185.12,5.57180825]
[1761932503038,6.17180825,185.17,185.11,10.97376138]
[1761932503262,5.57180825,185.17,185.11,11.66376138]
[1761932503459,5.85613139,185.18,185.13,5.57180825]
[1761932504063,5.85613139,185.18,185.13,6.26180825]
[1761932504273,5.85613139,185.18,185.14,0.69]
[1761932504568,5.85613139,185.18,185.13,11.66324154]
[1761932504940,5.85613139,185.18,185.14,0.69]
[1761932505163,5.85613139,185.18,185.13,5.40143329]
[1761932505366,6.17180825,185.17,185.13,5.40143329]
[1761932505555,0.28432314,185.16,185.12,5.40182849]
[1761932505754,0.28432314,185.16,185.12,10.97363674]
[1761932505960,0.28432314,185.16,185.13,6.26180825]
[1761932506151,108.47180825,185.19,185.13,11.66341089]
[1761932506357,5.57180825,185.17,185.12,5.57180825]
[1761932506559,0.28432314,185.16,185.11,5.57180825]
[1761932506867,6.45613139,185.16,185.11,5.40219329]
[1761932507168,6.45613139,185.16,185.1,6.09246048]
[1761932507362,107.87180825,185.15,185.1,10.97426873]
[1761932507673,5.57180825,185.11,185.06,10.97546111]
[1761932507858,5.57180825,185.12,185.07,6.26180825]
[1761932508046,5.57180825,185.12,185.07,0.69]
[1761932508369,6.17180825,185.12,185.05,5.40394487]
[1761932508550,5.57180825,185.1,185.05,11.66575312]
[1761932508953,5.57180825,185.1,185.05,6.26180825]
[1761932509364,0.28432314,185.12,185.06,6.26180825]
[1761932509586,5.57180825,185.11,185.06,6.26180825]
[1761932509773,5.57180825,185.11,185.04,0.1]
[1761932509774,0.6,185.11,185.04,0.1]
[1761932510076,5.57180825,185.1,185.05,5.57180825]
[1761932510372,5.57180825,185.09,185.04,6.36180825]
[1761932510746,5.57180825,185.09,185.04,11.76598721]
[1761932511375,5.57180825,185.1,185.05,0.69]
[1761932511669,5.57180825,185.08,185.04,0.1]
[1761932511881,0.6,185.09,185.04,0.1]
[1761932512042,0.88432314,185.09,185.04,0.1]
[1761932512246,0.88432314,185.09,185.04,5.50414277]
[1761932512443,10.07315083,185.09,185.05,0.69]
[1761932512750,5.57180825,185.09,185.05,0.69]
[1761932513267,20.592,185.1,185.05,0.69]
[1761932513268,26.16380825,185.1,185.05,6.26180825]
[1761932513472,20.592,185.1,185.05,6.26180825]
[1761932514058,20.592,185.1,185.05,5.57180825]
[1761932514263,26.76380825,185.1,185.05,11.66558116]
[1761932514470,5.57180825,185.09,185.05,5.40377291]
[1761932515157,21.192,185.1,185.05,5.40377291]
[1761932515473,102.3,185.09,185.06,2.88127222]
[1761932515989,102.3,185.09,185.06,0.69]
[1761932516287,102.3,185.09,185.06,8.28491356]
[1761932516462,102.3,185.09,185.06,6.09364134]
[1761932517289,102.3,185.09,185.07,2.88127222]
[1761932517452,102.3,185.09,185.07,0.69]
[1761932518073,102.3,185.09,185.06,7.59491356]
[1761932518251,102.3,185.09,185.06,8.28491356]
[1761932518457,102.3,185.09,185.07,2.19127222]
[1761932518967,102.3,185.09,185.06,8.28491356]
[1761932519484,102.3,185.09,185.07,2.19127222]
[1761932520462,102.3,185.09,185.06,2.19127222]
[1761932520869,102.3,185.09,185.06,2.88127222]
[1761932521070,102.3,185.09,185.07,2.88127222]
[1761932521266,102.3,185.09,185.08,2.19127222]
[1761932522102,102.3,185.09,185.08,2.88127222]
[1761932522295,102.3,185.13,185.08,2.88127222]
[1761932522480,102.3,185.13,185.12,2.19127222]
[1761932522659,2.79127222,185.21,185.12,2.19127222]
[1761932522862,0.6,185.21,185.16,2.19127222]
[1761932523081,0.6,185.2,185.16,2.19127222]
[1761932523684,21.192,185.2,185.16,7.59199515]
[1761932523894,21.192,185.2,185.16,2.19127222]
[1761932523895,0.6,185.2,185.16,2.19127222]
[1761932524064,21.192,185.2,185.16,2.19127222]
[1761932524265,0.6,185.2,185.16,7.59192295]
[1761932524476,21.192,185.2,185.16,2.19127222]
[1761932525377,26.76456688,185.2,185.15,10.97352304]
[1761932525573,0.88432314,185.19,185.15,5.57256688]
[1761932525980,0.6,185.18,185.15,5.57256688]
[1761932526179,0.6,185.18,185.15,10.97356841]
[1761932526379,0.6,185.18,185.14,5.57256688]
[1761932526591,0.28432314,185.19,185.15,5.57256688]
[1761932526792,0.88432314,185.19,185.13,6.09149366]
[1761932526989,20.592,185.2,185.17,5.57256688]
[1761932527298,30.38082769,185.24,185.19,5.57256688]
[1761932527479,30.38082769,185.24,185.13,51.48613312]
[1761932527480,6.17256688,185.29,185.23,5.57256688]
[1761932527675,0.2,185.3,185.26,5.57256688]
[1761932527877,0.2,185.3,185.28,5.57256688]
[1761932528197,0.2,185.3,185.25,18.89309636]
[1761932528198,0.2,185.3,185.29,6.26256688]
[1761932528369,0.2,185.3,185.25,18.89309636]
[1761932528370,0.2,185.3,185.25,5.39781971]
[1761932528715,0.2,185.3,185.28,5.57256688]
[1761932528865,0.2,185.3,185.29,5.57256688]
[1761932529300,0.2,185.3,185.28,5.57256688]
[1761932529800,0.2,185.3,185.29,11.6595122]
[1761932530592,0.2,185.33,185.29,25.15187552]
[1761932530765,0.2,185.33,185.3,0.69]
[1761932530971,0.2,185.33,185.32,5.57256688]
[1761932531669,0.2,185.33,185.3,10.96918035]
[1761932531874,0.2,185.33,185.29,5.57256688]
[1761932532279,0.2,185.33,185.31,5.57256688]
[1761932532695,0.2,185.33,185.3,5.57256688]
[1761932533438,0.87,185.33,185.28,5.57256688]
[1761932533709,0.2,185.33,185.29,5.57256688]
[1761932533922,0.87,185.33,185.29,5.57256688]
[1761932534082,0.2,185.33,185.29,10.96950896]
[1761932534278,0.2,185.33,185.3,0.69]
[1761932534483,0.2,185.33,185.29,5.39694208]
[1761932534704,0.2,185.33,185.27,0.69]
[1761932534886,0.2,185.33,185.29,5.57256688]
[1761932535087,9.78882769,185.31,185.21,0.69]
[1761932535391,5.57256688,185.28,185.23,5.57256688]
[1761932535809,5.57256688,185.27,185.22,5.57256688]
[1761932536188,5.57256688,185.27,185.22,6.26256688]
[1761932536189,6.24256688,185.27,185.22,6.26256688]
[1761932536519,5.57256688,185.26,185.21,5.57256688]
[1761932536686,5.57256688,185.26,185.2,11.66201728]
[1761932536886,6.24256688,185.25,185.2,5.57256688]
[1761932537141,6.24256688,185.25,185.19,5.57256688]
[1761932537487,6.24256688,185.25,185.19,6.26256688]
[1761932537818,5.57256688,185.24,185.19,11.66222732]
[1761932538198,5.57256688,185.24,185.19,6.26256688]
[1761932538402,5.57256688,185.24,185.19,10.97242199]
[1761932538606,5.57256688,185.24,185.19,11.68242199]
[1761932538804,5.57256688,185.24,185.19,10.97242199]
[1761932539015,5.57256688,185.24,185.2,0.71]
[1761932539193,6.24256688,185.25,185.2,0.71]
[1761932539595,20.592,185.26,185.21,6.28256688]
[1761932539919,5.85689002,185.28,185.23,5.39869351]
[1761932540386,5.85689002,185.28,185.22,5.57256688]
[1761932540590,5.57256688,185.23,185.18,5.57256688]
[1761932540804,0.95432314,185.27,185.16,0.71]
[1761932540805,0.67,185.27,185.21,5.57256688]
[1761932541008,0.28432314,185.29,185.22,5.57256688]
[1761932541219,0.28432314,185.29,185.16,0.71]
[1761932541220,5.57256688,185.28,185.23,5.57256688]
[1761932541423,5.57256688,185.29,185.24,5.57256688]
[1761932541806,102.3,185.3,185.25,6.10794605]
[1761932542016,5.57256688,185.32,185.27,5.57256688]
[1761932542230,5.57256688,185.31,185.19,39.49146341]
[1761932542413,5.57256688,185.31,185.25,5.57256688]
[1761932542414,5.57256688,185.3,185.25,5.57256688]
[1761932542594,102.3,185.3,185.22,0.71]
[1761932542799,108.54256688,185.3,185.25,5.57256688]
[1761932543040,5.57256688,185.29,185.24,5.57256688]
[1761932543241,5.57256688,185.27,185.22,6.28256688]
[1761932543727,0.67,185.27,185.23,5.57256688]
[1761932543905,0.28432314,185.29,185.21,5.57256688]
[1761932543906,6.24256688,185.26,185.21,5.57256688]
[1761932544110,5.57256688,185.26,185.21,5.57256688]
[1761932544430,6.24256688,185.26,185.21,5.57256688]
[1761932544666,5.57256688,185.27,185.22,5.57256688]
[1761932544992,6.24256688,185.27,185.22,5.57256688]
[1761932545434,5.57256688,185.26,185.21,5.57256688]
[1761932545628,6.23256688,185.26,185.21,5.57256688]
[1761932545805,5.57256688,185.26,185.21,5.57256688]
[1761932546012,5.57256688,185.26,185.22,0.72]
[1761932546213,5.85689002,185.27,185.21,6.29256688]
[1761932546414,0.66,185.26,185.21,6.29256688]
[1761932546805,5.85689002,185.27,185.21,6.29256688]
[1761932547005,6.51689002,185.27,185.21,6.29256688]
[1761932547201,5.85689002,185.25,185.18,0.72]
[1761932547426,5.57256688,185.24,185.18,0.72]
[1761932547733,5.57256688,185.23,185.16,21.312]
[1761932548024,5.57256688,185.22,185.17,5.57256688]
[1761932548209,6.23256688,185.22,185.17,5.57256688]
[1761932548432,0.28432314,185.24,185.17,6.29256688]
[1761932548627,5.57256688,185.22,185.17,6.29256688]
[1761932548842,5.57256688,185.22,185.12,20.592]
[1761932548843,0.94432314,185.24,185.18,11.69271808]
[1761932549149,5.57256688,185.25,185.2,5.57256688]
[1761932549325,5.57256688,185.25,185.19,5.57256688]
[1761932549731,6.23256688,185.26,185.21,5.57256688]
[1761932550139,6.23256688,185.25,185.2,5.57256688]
[1761932550764,5.57256688,185.25,185.2,0.72]
[1761932550968,6.23256688,185.25,185.2,0.72]
[1761932551265,5.57256688,185.25,185.2,11.69208419]
[1761932551430,6.23256688,185.25,185.2,0.72]
[1761932551635,5.57256688,185.25,185.2,5.39946656]
[1761932551849,5.57256688,185.25,185.2,0.72]
[1761932553127,5.57256688,185.25,185.2,6.11951909]
[1761932553467,5.57256688,185.26,185.21,6.29256688]
[1761932553669,5.57256688,185.26,185.22,0.72]
[1761932553863,128.46456688,185.27,185.22,6.29256688]
[1761932554040,102.3,185.27,185.24,5.57256688]
[1761932554234,5.57256688,185.3,185.24,5.57256688]
[1761932554581,0.2,185.33,185.27,5.57256688]
[1761932554870,0.2,185.33,185.28,5.57256688]
[1761932555036,5.77256688,185.33,185.28,5.57256688]
[1761932555235,5.77256688,185.33,185.28,6.29256688]
[1761932555434,2.38552949,185.33,185.28,0.72]
[1761932555630,20.592,185.32,185.28,0.72]
[1761932555833,20.592,185.32,185.28,6.11717861]
[1761932556273,0.2,185.33,185.29,2.18552949]
[1761932556443,0.2,185.33,185.3,0.72]
[1761932556778,0.2,185.33,185.31,2.18552949]
[1761932556937,0.2,185.33,185.32,2.90552949]
[1761932557345,0.2,185.33,185.32,14.56821438]
[1761932557544,0.2,185.33,185.32,6.11607165]
[1761932558037,0.2,185.33,185.31,8.45214273]
[1761932558353,0.2,185.33,185.32,8.45214273]
[1761932559542,0.2,185.33,185.32,9.17214273]
[1761932559750,0.2,185.33,185.32,8.45214273]
[1761932560962,0.2,185.33,185.32,9.17214273]
[1761932561163,0.2,185.33,185.28,21.312]
[1761932561349,1.14432314,185.33,185.26,6.11781928]
[1761932561663,9.59646587,185.33,185.28,8.45214273]
[1761932561837,1.14432314,185.33,185.29,8.45214273]
[1761932562454,0.2,185.33,185.31,8.45214273]
[1761932563136,0.2,185.33,185.32,13.84821438]
[1761932563355,0.2,185.33,185.32,8.45214273]
[1761932563556,0.2,185.33,185.31,6.11632146]
[1761932563757,0.2,185.33,185.32,8.45214273]
[1761932566852,0.2,185.33,185.32,14.56821438]
[1761932567179,0.2,185.33,185.32,13.84821438]
[1761932567366,0.2,185.33,185.32,8.45214273]
[1761932568668,0.2,185.33,185.32,14.56821438]
[1761932568865,0.2,185.33,185.32,9.17214273]
[1761932569045,1.14432314,185.33,185.29,8.45214273]
[1761932569459,1.14432314,185.33,185.3,8.45214273]
[1761932569460,0.48432314,185.33,185.3,8.45214273]
[1761932569659,0.2,185.33,185.31,8.45214273]
[1761932570859,0.2,185.33,185.32,8.45214273]
[1761932571260,0.2,185.33,185.32,9.17214273]
[1761932571458,0.2,185.33,185.32,14.56821438]
[1761932571656,0.2,185.33,185.32,6.11607165]
[1761932571857,0.2,185.33,185.32,9.17214273]
[1761932572057,0.2,185.33,185.32,13.84821438]
[1761932572263,0.2,185.33,185.32,8.45214273]
[1761932572452,0.2,185.33,185.32,13.84821438]
[1761932572653,0.2,185.33,185.32,8.45214273]
[1761932572849,0.2,185.33,185.26,22.75515604]
[1761932573075,8.45214273,185.28,185.26,2.16315604]
[1761932573569,20.592,185.27,185.15,9.17214273]
[1761932573754,20.592,185.27,185.26,8.45214273]
[1761932573956,18.44097042,185.33,185.26,8.45214273]
[1761932573957,9.98882769,185.33,185.26,8.45214273]
[1761932574280,9.98882769,185.33,185.32,8.45214273]
[1761932574281,0.2,185.33,185.32,8.45214273]
[1761932574462,0.2,185.33,185.26,9.98882769]
[1761932574690,0.2,185.33,185.32,8.45214273]
[1761932575451,0.2,185.33,185.26,9.78882769]
[1761932575673,0.2,185.33,185.32,8.45214273]
[1761932576171,0.2,185.35,185.34,8.45214273]
[1761932576954,0.2,185.44,185.37,9.78882769]
[1761932577166,0.2,185.44,185.41,20.592]
[1761932577367,0.2,185.44,185.43,8.45214273]
[1761932577567,0.2,185.44,185.43,13.84501335]
[1761932578079,0.1,185.52,185.47,0.28432314]
[1761932578260,0.1,185.52,185.51,16.90428546]
[1761932578576,0.1,185.52,185.51,8.45214273]
[1761932578771,0.9,185.65,185.54,20.592]
[1761932578975,0.9,185.65,185.62,8.45214273]
[1761932579275,0.9,185.65,185.64,8.45214273]
[1761932579582,10.97315083,185.65,185.64,8.45214273]
[1761932579782,21.492,185.65,185.64,8.45214273]
[1761932579961,0.9,185.65,185.61,8.45214273]
[1761932580157,0.9,185.65,185.54,34.06568645]
[1761932580158,9.78882769,185.63,185.54,16.2000162]
[1761932580364,0.28432314,185.62,185.53,5.3898456]
[1761932580677,0.28432314,185.6,185.57,8.45214273]
[1761932580873,0.28432314,185.6,185.47,13.47866787]
[1761932580874,0.28432314,185.58,185.47,13.47866787]
[1761932581177,9.15214273,185.59,185.43,9.78882769]
[1761932581178,0.28432314,185.53,185.43,9.78882769]
[1761932581361,0.28432314,185.51,185.49,8.45214273]
[1761932581753,0.28432314,185.51,185.36,1.99999999]
[1761932581754,0.7,185.5,185.47,8.45214273]
[1761932582181,0.7,185.5,185.48,8.45214273]
[1761932582770,0.7,185.53,185.49,8.45214273]
[1761932582971,0.7,185.53,185.51,8.45214273]
[1761932583184,0.7,185.57,185.52,8.45214273]
[1761932583383,0.7,185.57,185.45,18.87300013]
[1761932583697,20.592,185.56,185.55,8.45214273]
[1761932584074,0.7,185.6,185.55,8.45214273]
[1761932584274,0.7,185.6,185.56,8.45214273]
[1761932584475,20.592,185.58,185.55,8.45214273]
[1761932584701,20.592,185.57,185.47,13.47894028]
[1761932584875,20.592,185.57,185.52,8.45214273]
[1761932585184,0.7,185.56,185.52,8.45214273]
[1761932585669,0.7,185.56,185.51,8.45214273]
[1761932586693,0.28432314,185.55,185.51,8.45214273]
[1761932587295,0.98432314,185.55,185.51,8.45214273]
[1761932587505,9.78882769,185.52,185.44,5.39254398]
[1761932587662,8.73646587,185.51,185.46,8.45214273]
[1761932587865,0.98432314,185.51,185.46,8.45214273]
[1761932588066,0.7,185.5,185.46,8.45214273]
[1761932588476,0.7,185.5,185.47,8.45214273]
[1761932588679,0.28432314,185.51,185.47,8.45214273]
[1761932588886,0.98432314,185.51,185.47,8.45214273]
[1761932589566,0.7,185.5,185.47,8.45214273]
[1761932590971,0.7,185.5,185.46,8.45214273]
[1761932591904,0.7,185.5,185.43,5.39286296]
[1761932592202,36.80514886,185.54,185.43,18.87503952]
[1761932592383,0.7,185.56,185.52,8.45214273]
[1761932592588,0.7,185.55,185.52,8.45214273]
[1761932592789,2.16105243,185.59,185.54,8.45214273]
[1761932593098,2.16105243,185.59,185.48,20.592]
[1761932593099,9.15214273,185.58,185.48,20.592]
[1761932593274,9.15214273,185.58,185.43,19.01720109]
[1761932593275,8.45214273,185.56,185.51,8.45214273]
[1761932593468,0.7,185.55,185.52,8.45214273]
[1761932593971,0.7,185.55,185.5,5.39069151]
[1761932594177,0.7,185.55,185.52,8.45214273]
[1761932595381,0.7,185.55,185.51,8.45214273]
[1761932595591,0.7,185.55,185.52,8.45214273]
[1761932595990,9.43646587,185.55,185.42,20.592]
[1761932596196,9.43646587,185.55,185.5,8.45214273]
[1761932596197,0.98432314,185.55,185.5,8.45214273]
[1761932596500,0.7,185.55,185.53,8.45214273]
[1761932596997,0.7,185.55,185.52,8.45214273]
[1761932597404,0.7,185.55,185.53,8.45214273]
[1761932597698,0.7,185.55,185.52,8.45214273]
[1761932597875,0.7,185.55,185.44,30.38082769]
[1761932597876,0.7,185.55,185.51,8.45214273]
[1761932598472,0.98432314,185.55,185.52,8.45214273]
[1761932598675,0.7,185.55,185.52,8.45214273]
[1761932598879,0.71,185.54,185.48,5.39141686]
[1761932599077,0.99432314,185.54,185.49,8.45214273]
[1761932599500,0.71,185.53,185.5,8.45214273]
[1761932600519,0.71,185.53,185.49,8.45214273]
[1761932600671,0.71,185.53,185.42,20.592]
[1761932600672,0.28432314,185.52,185.42,20.592]
[1761932600874,0.28432314,185.52,185.47,8.45214273]
[1761932601221,0.71,185.51,185.48,8.45214273]
[1761932602400,18.24097042,185.49,185.43,8.45214273]
[1761932602574,8.73646587,185.48,185.42,8.45214273]
[1761932602775,0.28432314,185.48,185.44,8.45214273]
[1761932602993,0.71,185.49,185.46,8.45214273]
[1761932603705,0.28432314,185.5,185.46,8.45214273]
[1761932603875,0.71,185.49,185.46,8.45214273]
[1761932604308,0.71,185.49,185.44,5.39256544]
[1761932604513,0.71,185.49,185.45,8.45214273]
[1761932604800,9.16214273,185.49,185.44,8.45214273]
[1761932605011,8.73646587,185.48,185.39,5.39403419]
[1761932605174,8.73646587,185.48,185.42,8.45214273]
[1761932605175,9.42646587,185.48,185.42,8.45214273]
[1761932605371,0.69,185.47,185.42,8.45214273]
[1761932605602,9.14214273,185.47,185.41,8.45214273]
[1761932605897,20.592,185.48,185.46,8.45214273]
[1761932606098,0.69,185.47,185.43,8.45214273]
[1761932607101,0.69,185.47,185.43,13.84491193]
[1761932607283,0.69,185.47,185.39,13.48508549]
[1761932607485,0.69,185.47,185.42,8.45214273]
[1761932607878,20.87632314,185.46,185.41,8.45214273]
[1761932608397,0.69,185.45,185.41,8.45214273]
[1761932608795,0.69,185.45,185.4,8.45214273]
[1761932610410,10.07315083,185.47,185.41,8.45214273]
[1761932610593,10.07315083,185.47,185.45,8.45214273]
[1761932610594,0.69,185.47,185.45,8.45214273]
[1761932610998,110.75214273,185.5,185.46,8.45214273]
[1761932610999,0.69,185.5,185.46,8.45214273]
[1761932611206,0.69,185.5,185.45,18.87300775]
[1761932611207,0.69,185.53,185.49,8.45214273]
[1761932611402,0.69,185.54,185.49,8.45214273]
[1761932611608,9.42646587,185.54,185.48,8.45214273]
[1761932611901,0.69,185.53,185.45,5.39228519]
[1761932612107,0.97432314,185.53,185.48,8.45214273]
[1761932612285,0.69,185.53,185.49,8.45214273]
[1761932612491,177.66893385,185.62,185.52,8.45214273]
[1761932612492,0.69,185.56,185.52,8.45214273]
[1761932612686,0.69,185.56,185.53,8.45214273]
[1761932612996,0.69,185.56,185.51,5.39049355]
[1761932613201,0.69,185.56,185.51,8.45214273]
[1761932613403,0.69,185.56,185.52,8.45214273]
[1761932614693,9.14214273,185.56,185.51,8.45214273]
[1761932615100,0.69,185.55,185.51,8.45214273]
[1761932615703,0.69,185.55,185.52,8.45214273]
[1761932616803,29.04414273,185.58,185.44,26.9620916]
[1761932616804,21.282,185.58,185.54,8.45214273]
[1761932617013,20.592,185.56,185.55,8.45214273]
[1761932617407,20.592,185.56,185.55,5.54895207]
[1761932617606,21.282,185.57,185.55,5.54895207]
[1761932618422,0.69,185.6,185.56,5.54895207]
[1761932618626,0.69,185.6,185.57,5.54895207]
[1761932618918,0.69,185.6,185.57,10.93768669]
[1761932619510,0.69,185.6,185.58,5.54895207]
[1761932619831,0.69,185.64,185.59,5.54895207]
[1761932620136,0.69,185.64,185.61,5.54895207]
[1761932620500,5.54895207,185.63,185.55,5.3891042]
[1761932620696,5.83327521,185.62,185.55,5.3891042]
[1761932620924,5.83327521,185.62,185.56,5.54895207]
[1761932620925,10.07315083,185.62,185.56,5.54895207]
[1761932621105,0.69,185.61,185.57,5.54895207]
[1761932622230,21.282,185.61,185.57,5.54895207]
[1761932622425,21.282,185.61,185.48,36.74533863]
[1761932622426,5.54895207,185.59,185.52,5.39011693]
[1761932622612,5.54895207,185.59,185.36,66.21]
[1761932622613,26.14095207,185.56,185.47,5.39170755]
[1761932622935,26.14095207,185.56,185.5,5.54895207]
[1761932623148,6.23895207,185.55,185.5,5.54895207]
[1761932623305,0.69,185.54,185.5,5.54895207]
[1761932623502,6.23895207,185.54,185.48,5.54895207]
[1761932623725,6.23895207,185.54,185.49,5.54895207]
[1761932623931,0.69,185.54,185.49,5.54895207]
[1761932624127,0.69,185.53,185.49,5.54895207]
[1761932624513,0.69,185.53,185.5,5.54895207]
[1761932624716,0.69,185.53,185.43,20.592]
[1761932624717,20.592,185.64,185.47,18.87097643]
[1761932624904,20.592,185.57,185.47,45.82951419]
[1761932625107,20.592,185.57,185.54,5.54895207]
[1761932625325,21.282,185.57,185.54,5.54895207]
[1761932625528,0.69,185.56,185.54,5.54895207]
[1761932625842,0.69,185.56,185.47,45.82951419]
[1761932625843,0.69,185.56,185.53,5.54895207]
[1761932626131,0.69,185.56,185.52,5.54895207]
[1761932626436,0.69,185.56,185.47,18.87097643]
[1761932626437,0.69,185.56,185.53,5.54895207]
[1761932626737,0.97432314,185.56,185.52,5.54895207]
[1761932626917,0.97432314,185.56,185.47,13.47926888]
[1761932627251,0.97432314,185.56,185.51,5.54895207]
[1761932627252,0.69,185.55,185.51,5.54895207]
[1761932627536,0.69,185.55,185.52,5.54895207]
[1761932627830,0.69,185.55,185.47,18.87097643]
[1761932628005,0.69,185.55,185.53,5.54895207]
[1761932628203,0.69,185.57,185.53,5.54895207]
[1761932628536,5.54895207,185.61,185.47,18.87097643]
[1761932628743,0.97432314,185.6,185.55,5.54895207]
[1761932628926,6.52327521,185.6,185.55,5.54895207]
[1761932629110,0.69,185.59,185.55,5.54895207]
[1761932629310,0.69,185.59,185.56,5.54895207]
[1761932629635,0.69,185.59,185.55,5.38923216]
[1761932629939,0.69,185.59,185.56,5.54895207]
[1761932630608,0.69,185.59,185.49,13.47744432]
[1761932630811,0.69,185.59,185.56,5.54895207]
[1761932631120,0.69,185.59,185.57,5.54895207]
[1761932631521,0.69,185.59,185.49,15.17995389]
[1761932631722,0.69,185.59,185.56,5.54895207]
[1761932631916,0.69,185.59,185.57,5.54895207]
[1761932632514,0.69,185.59,185.56,5.54895207]
[1761932633212,0.69,185.59,185.56,10.93793788]
[1761932633533,0.69,185.59,185.56,5.54895207]
[1761932633923,0.69,185.59,185.55,5.54895207]
[1761932634320,0.97432314,185.59,185.54,10.93856921]
[1761932634512,5.54895207,185.58,185.52,5.54895207]
[1761932634714,0.69,185.57,185.53,5.54895207]
[1761932635019,0.69,185.57,185.53,10.93890592]
[1761932635426,0.69,185.57,185.54,5.54895207]
[1761932635630,0.69,185.57,185.48,13.47844258]
[1761932635832,0.97432314,185.57,185.48,18.86985944]
[1761932636031,5.54895207,185.55,185.49,5.54895207]
[1761932636540,0.97432314,185.54,185.49,5.54895207]
[1761932636943,0.69,185.53,185.49,5.54895207]
[1761932637241,6.23895207,185.53,185.47,5.54895207]
[1761932637426,6.23895207,185.53,185.48,5.54895207]
[1761932637620,0.69,185.52,185.48,5.54895207]
[1761932639551,0.69,185.52,185.48,10.94035162]
[1761932639836,5.54895207,185.55,185.5,5.54895207]
[1761932640035,5.54895207,185.55,185.48,5.39139955]
[1761932640036,0.69,185.54,185.52,5.54895207]
[1761932640246,0.69,185.54,185.5,5.54895207]
[1761932640856,0.69,185.54,185.49,5.54895207]
[1761932641019,5.54895207,185.52,185.46,5.39182346]
[1761932641343,5.54895207,185.52,185.46,10.94077553]
[1761932641513,0.69,185.51,185.46,10.94077553]
[1761932642233,0.69,185.51,185.47,5.54895207]
[1761932642540,0.69,185.51,185.48,5.54895207]
[1761932642721,0.69,185.51,185.46,5.39182346]
[1761932642918,0.69,185.51,185.48,5.54895207]
[1761932643118,0.69,185.51,185.47,5.54895207]
[1761932643340,6.23895207,185.51,185.46,5.54895207]
[1761932643644,5.54895207,185.49,185.44,10.94126478]
[1761932644149,0.69,185.48,185.44,10.94126478]
[1761932644331,0.69,185.48,185.45,5.54895207]
[1761932644528,20.592,185.51,185.47,5.54895207]
[1761932644849,21.282,185.51,185.49,5.54895207]
[1761932645147,21.282,185.51,185.44,18.87376223]
[1761932645341,0.69,185.5,185.46,5.54895207]
[1761932645519,0.97432314,185.5,185.45,5.54895207]
[1761932645721,21.282,185.49,185.44,5.54895207]
[1761932646261,0.69,185.48,185.44,5.54895207]
[1761932646641,0.69,185.48,185.42,5.39316147]
[1761932646642,5.54895207,185.47,185.41,5.54895207]
[1761932646843,5.54895207,185.47,185.42,5.54895207]
[1761932647156,0.69,185.46,185.42,5.54895207]
[1761932647560,0.69,185.46,185.41,5.54895207]
[1761932648457,0.69,185.46,185.39,5.54895207]
[1761932648458,5.54895207,185.44,185.39,5.54895207]
[1761932648651,5.54895207,185.44,185.38,5.54895207]
[1761932648951,0.69,185.43,185.4,5.54895207]
[1761932649847,0.69,185.47,185.42,5.54895207]
[1761932650028,0.69,185.5,185.46,5.54895207]
[1761932650358,0.69,185.5,185.37,0.28432314]
[1761932650359,21.282,185.5,185.47,5.54895207]
[1761932650557,0.69,185.52,185.49,5.54895207]
[1761932650863,0.69,185.52,185.41,20.592]
[1761932650864,21.282,185.52,185.5,5.54895207]
[1761932651235,0.69,185.52,185.5,5.54895207]
[1761932651458,21.282,185.52,185.5,5.54895207]
[1761932652042,0.69,185.52,185.5,5.54895207]